[Event "Slovakia Chess Open 2024"]
[Site "Modra"]
[Date "2024.03.04"]
[Round "6.15"]
[White "Zentko, Ladislav"]
[Black "Banas, Samuel"]
[Result "0-1"]
[ECO "D02"]
[WhiteElo "1749"]
[BlackElo "1733"]
[Annotator "NA"]
[PlyCount "82"]
[EventDate "2024.02.29"]
[EventType "swiss"]
[EventCountry "SVK"]
[SourceTitle "playchess.com"]
[Source "ChessBase"]
[SourceQuality "1"]
[TimeControl "5400+30"]

1. Nf3 {[%emt 0:00:15]} d5 {[%emt 0:00:09]} 2. d4 {[%emt 0:00:02]} Nf6 {[%emt 0:00:09]} 3. Bf4 {[%emt 0:00:06]} Bf5 {[%emt 0:00:11]} 4. e3 {[%emt 0:00:08]} e6 {[%emt 0:00:11]} 5. c3 {[%emt 0:00:12]} Bd6 {[%emt 0:00:15]} 6. Nbd2 {[%emt 0:00:22]} Bxf4 {[%emt 0:00:14]} 7. exf4 {[%emt 0:00:05]} O-O {[%emt 0:00:11]} 8. Be2 {[%emt 0:03:02]} Qd6 {[%emt 0:00:45]} 9. g3 {[%emt 0:00:25]} c6 {[%emt 0:00:21]} 10. Ne5 {[%emt 0:00:42]} Ne4 {[%emt 0:01:15]} 11. O-O {[%emt 0:02:54]} f6 {[%emt 0:00:33]} 12. Nef3 {[%emt 0:04:55]} Nd7 {[%emt 0:00:14]} 13. Nxe4 {[%emt 0:02:39]} Bxe4 {[%emt 0:01:04]} 14. Nd2 {[%emt 0:06:12]} Bf5 {[%emt 0:02:00]} 15. Re1 {[%emt 0:04:27]} Rae8 {[%emt 0:00:34]} 16. Bg4 {[%emt 0:06:03]} Bxg4 {[%emt 0:00:46]} 17. Qxg4 {[%emt 0:00:07]} e5 {[%emt 0:00:09]} 18. fxe5 {[%emt 0:02:48]} fxe5 {[%emt 0:00:10]} 19. Re3 {[%emt 0:08:43]} exd4 {[%emt 0:01:09]} 20. Qxd4 {[%emt 0:01:18]} c5 {[%emt 0:02:07]} 21. Qd3 {[%emt 0:00:54]} Ne5 {[%emt 0:00:56]} 22. Qe2 {[%emt 0:00:35]} d4 {[%emt 0:00:30]} 23. cxd4 {[%emt 0:04:02]} cxd4 {[%emt 0:01:01]} 24. Re4 {[%emt 0:00:45]} d3 {[%emt 0:00:35]} 25. Qh5 {[%emt 0:05:05]} Qf6 {[%emt 0:05:57]} 26. Rf4 {[%emt 0:03:43]} Qb6 {[%emt 0:04:43]} 27. Re1 {[%emt 0:11:47]} Qxb2 {[%emt 0:07:23]} 28. Rxe5 {[%emt 0:03:25]} Rxe5 {[%emt 0:03:10]} 29. Rxf8+ {[%emt 0:01:45]} Kxf8 {[%emt 0:00:09]} 30. Qf3+ {[%emt 0:02:21]} Ke7 {[%emt 0:01:22]} 31. Qxd3 {[%emt 0:00:49]} Qxa2 {[%emt 0:02:22]} 32. Nc4 {[%emt 0:01:26]} Re6 {[%emt 0:01:28]} 33. Ne3 {[%emt 0:00:30]} a5 {[%emt 0:01:37]} 34. Qxh7 {[%emt 0:01:21]} Qb2 {[%emt 0:00:49]} 35. Nf5+ {[%emt 0:01:08]} Kf7 {[%emt 0:01:00]} 36. Qh5+ {[%emt 0:03:58]} Kf6 {[%emt 0:02:17]} 37. g4 {[%emt 0:01:04]} a4 {[%emt 0:00:50]} 38. h4 {[%emt 0:01:09]} a3 {[%emt 0:00:14]} 39. Qh8 {[%emt 0:05:43]} Kf7 {[%emt 0:05:29]} 40. Qh5+ {[%emt 0:00:30]} Kg8 {[%emt 0:00:15]} 41. Qg5 {[%emt 0:00:54]} a2 {[%emt 0:01:10]} 0-1

[Event "Slovakia Chess Open 2024"]
[Site "Modra"]
[Date "2024.03.04"]
[Round "6.17"]
[White "Gecik Jergus"]
[Black "Veres, Alex"]
[Result "0-1"]
[ECO "C01"]
[WhiteElo "1000"]
[BlackElo "1584"]
[Annotator "NA RC"]
[PlyCount "64"]
[EventDate "2024.02.29"]
[EventType "swiss"]
[EventCountry "SVK"]
[SourceTitle "playchess.com"]
[Source "ChessBase"]
[SourceQuality "1"]
[TimeControl "5400+30"]

1. e4 {[%emt 0:03:42]} e6 {[%emt 0:00:05]} 2. Nf3 {[%emt 0:01:19]} d5 {[%emt 0:00:08]} 3. exd5 {[%emt 0:02:52]} exd5 {[%emt 0:00:09]} 4. d4 {[%emt 0:01:06]} Nf6 {[%emt 0:00:13]} 5. Nc3 {[%emt 0:00:27]} c6 {[%emt 0:00:14]} 6. Bg5 {[%emt 0:01:27]} Be7 {[%emt 0:00:42]} 7. Bd3 {[%emt 0:01:38]} h6 {[%emt 0:00:41]} 8. Bh4 {[%emt 0:01:09]} O-O {[%emt 0:00:26]} 9. O-O {[%emt 0:00:11]} Bg4 {[%emt 0:02:27]} 10. h3 {[%emt 0:01:12]} Be6 {[%emt 0:00:30]} 11. Re1 {[%emt 0:02:54]} Nbd7 {[%emt 0:02:57]} 12. a3 {[%emt 0:06:40]} Qc7 {[%emt 0:09:24]} 13. g3 {[%emt 0:15:48]} Rfe8 {[%emt 0:00:30]} 14. Ne5 {[%emt 0:10:15]} Nxe5 {[%emt 0:05:21]} 15. dxe5 {[%emt 0:00:30]} Nd7 {[%emt 0:00:30]} 16. f4 {[%emt 0:00:30]} Bxh4 {[%emt 0:00:30]} 17. gxh4 {[%emt 0:00:30]} Nc5 {[%emt 0:00:30]} 18. b4 {[%emt 0:00:30]} Qb6 {[%emt 0:01:14]} 19. bxc5 {[%emt 0:07:38]} Qxc5+ {[%emt 0:00:30]} 20. Kg2 {[%emt 0:00:30]} Qxc3 {[%emt 0:00:30]} 21. f5 {[%emt 0:00:30]} Bd7 {[%emt 0:00:30]} 22. Qg4 {[%emt 0:00:30]} Rxe5 {[%emt 0:00:30]} 23. Qg3 {[%emt 0:00:30]} Rxe1 {[%emt 0:00:30]} 24. Rxe1 {[%emt 0:00:30]} Re8 {[%emt 0:00:30]} 25. Rf1 {[%emt 0:00:30]} Qe5 {[%emt 0:05:52]} 26. Rf4 {[%emt 0:08:12]} Qf6 {[%emt 0:11:58]} 27. a4 {[%emt 0:05:11]} c5 {[%emt 0:02:21]} 28. Bb5 {[%emt 0:11:50]} Bxb5 {[%emt 0:00:30]} 29. axb5 {[%emt 0:00:30]} d4 {[%emt 0:00:30]} 30. Qd3 {[%emt 0:00:30]} Qe5 {[%emt 0:04:11]} 31. Rf2 {[%emt 0:01:54]} Qe4+ {[%emt 0:00:16]} 32. Kf1 {[%emt 0:04:13]} Qh1# {[%emt 0:51:21]} 0-1

[Event "Slovakia Chess Open 2024"]
[Site "Modra"]
[Date "2024.03.04"]
[Round "6.18"]
[White "Lepejova Viola"]
[Black "Mruskovic, Ondrej"]
[Result "0-1"]
[ECO "C00"]
[WhiteElo "1000"]
[BlackElo "1510"]
[Annotator "NA RC"]
[PlyCount "62"]
[EventDate "2024.02.29"]
[EventType "swiss"]
[EventCountry "SVK"]
[SourceTitle "playchess.com"]
[Source "ChessBase"]
[SourceQuality "1"]
[TimeControl "5400+30"]

1. e4 {[%emt 0:00:04]} e6 {[%emt 0:00:01]} 2. Nf3 {[%emt 0:00:14]} d5 {[%emt 0:00:06]} 3. Nc3 {[%emt 0:00:32]} Bb4 {[%emt 0:00:34]} 4. Bd3 {[%emt 0:02:04]} Nc6 {[%emt 0:00:57]} 5. a3 {[%emt 0:00:39]} Ba5 {[%emt 0:01:35]} 6. O-O {[%emt 0:01:03]} Nf6 {[%emt 0:01:25]} 7. e5 {[%emt 0:01:29]} Nd7 {[%emt 0:02:55]} 8. Re1 {[%emt 0:02:38]} Bb6 {[%emt 0:01:25]} 9. Na4 {[%emt 0:03:11]} O-O {[%emt 0:08:40]} 10. c3 {[%emt 0:04:17]} a6 {[%emt 0:01:22]} 11. Bc2 {[%emt 0:00:39]} Ba7 {[%emt 0:00:50]} 12. d4 {[%emt 0:00:12]} b5 {[%emt 0:01:10]} 13. Ng5 {[%emt 0:00:53]} g6 {[%emt 0:03:47]} 14. Qg4 {[%emt 0:01:57]} Kg7 {[%emt 0:09:36]} 15. h4 {[%emt 0:03:06]} h5 {[%emt 0:03:19]} 16. Qf3 {[%emt 0:02:46]} Qe7 {[%emt 0:08:17]} 17. g4 {[%emt 0:02:44]} Rh8 {[%emt 0:02:53]} 18. Be3 {[%emt 0:03:26]} bxa4 {[%emt 0:02:14]} 19. Bxa4 {[%emt 0:01:09]} Bb7 {[%emt 0:00:32]} 20. gxh5 {[%emt 0:03:10]} Rxh5 {[%emt 0:00:53]} 21. c4 {[%emt 0:01:48]} Nxd4 {[%emt 0:01:30]} 22. Bxd4 {[%emt 0:01:45]} Bxd4 {[%emt 0:00:14]} 23. Rad1 {[%emt 0:02:17]} Rxh4 {[%emt 0:02:27]} 24. Rd2 {[%emt 0:01:48]} Qxg5+ {[%emt 0:00:13]} 25. Kf1 {[%emt 0:00:40]} Qxd2 {[%emt 0:00:43]} 26. Re2 {[%emt 0:01:33]} Qc1+ {[%emt 0:01:01]} 27. Re1 {[%emt 0:03:07]} Qxc4+ {[%emt 0:00:16]} 28. Re2 {[%emt 0:01:20]} Rah8 {[%emt 0:00:48]} 29. Kg2 {[%emt 0:06:42]} Rh2+ {[%emt 0:00:14]} 30. Kg3 {[%emt 0:00:31]} R8h3+ {[%emt 0:00:33]} 31. Kg4 {[%emt 0:00:15]} Be3+ {[%emt 0:00:52]} 0-1

[Event "Slovakia Chess Open 2024"]
[Site "Modra"]
[Date "2024.03.04"]
[Round "7.1"]
[White "Bochnicka, Vladimir"]
[Black "Stevik, Patrik"]
[Result "1/2-1/2"]
[ECO "C55"]
[WhiteElo "2413"]
[BlackElo "2167"]
[Annotator "RC"]
[PlyCount "88"]
[EventDate "2024.02.29"]
[EventType "swiss"]
[EventCountry "SVK"]
[SourceTitle "playchess.com"]
[Source "ChessBase"]
[SourceQuality "1"]
[TimeControl "5400+30"]

1. e4 {[%emt 0:00:10]} e5 {[%emt 0:00:50]} 2. Nf3 {[%emt 0:00:09]} Nc6 {[%emt 0:00:02]} 3. Bc4 {[%emt 0:01:14]} Nf6 {[%emt 0:00:05]} 4. d3 {[%emt 0:00:05]} d5 {[%emt 0:00:05]} 5. exd5 {[%emt 0:00:15]} Nxd5 {[%emt 0:00:03]} 6. O-O {[%emt 0:00:41]} Be7 {[%emt 0:00:04]} 7. c3 {[%emt 0:03:51]} O-O {[%emt 0:02:15]} 8. Re1 {[%emt 0:00:21]} Bg4 {[%emt 0:07:43]} 9. h3 {[%emt 0:04:54]} Bh5 {[%emt 0:00:18]} 10. a4 {[%emt 0:00:55]} Nb6 {[%emt 0:06:34]} 11. Bb5 {[%emt 0:02:47]} Nd7 {[%emt 0:11:02]} 12. a5 {[%emt 0:00:29]} a6 {[%emt 0:00:35]} 13. Bxc6 {[%emt 0:10:53]} bxc6 {[%emt 0:00:01]} 14. d4 {[%emt 0:00:34]} exd4 {[%emt 0:13:43]} 15. g4 {[%emt 0:01:00]} Bg6 {[%emt 0:00:11]} 16. Nxd4 {[%emt 0:00:34]} Bh4 {[%emt 0:02:21]} 17. Nxc6 {[%emt 0:28:30]} Qf6 {[%emt 0:00:31]} 18. Ne7+ {[%emt 0:00:07]} Kh8 {[%emt 0:00:12]} 19. Qd4 {[%emt 0:00:27]} Qxd4 {[%emt 0:30:06]} 20. cxd4 {[%emt 0:00:08]} Bxb1 {[%emt 0:00:11]} 21. Rxb1 {[%emt 0:00:08]} Rae8 {[%emt 0:00:10]} 22. g5 {[%emt 0:03:38]} f6 {[%emt 0:00:35]} 23. Bf4 {[%emt 0:03:09]} Bxf2+ {[%emt 0:05:21]} 24. Kxf2 {[%emt 0:00:05]} fxg5 {[%emt 0:00:02]} 25. Ng6+ {[%emt 0:00:13]} hxg6 {[%emt 0:00:46]} 26. Rxe8 {[%emt 0:00:05]} Rxe8 {[%emt 0:00:01]} 27. Bxc7 {[%emt 0:00:45]} Rc8 {[%emt 0:01:02]} 28. Be5 {[%emt 0:11:55]} Nxe5 {[%emt 0:02:04]} 29. dxe5 {[%emt 0:00:04]} Rc5 {[%emt 0:00:11]} 30. Re1 {[%emt 0:02:57]} Kg8 {[%emt 0:00:46]} 31. b4 {[%emt 0:11:29]} Rc4 {[%emt 0:00:19]} 32. e6 {[%emt 0:05:00]} Kf8 {[%emt 0:00:18]} 33. e7+ {[%emt 0:00:03]} Ke8 {[%emt 0:00:05]} 34. Re6 {[%emt 0:00:12]} Rxb4 {[%emt 0:01:22]} 35. Rxa6 {[%emt 0:00:19]} Kxe7 {[%emt 0:02:03]} 36. Rxg6 {[%emt 0:00:05]} Kf7 {[%emt 0:04:52]} 37. Rxg5 {[%emt 0:00:16]} Kf6 {[%emt 0:00:22]} 38. Rc5 {[%emt 0:00:40]} Ra4 {[%emt 0:00:08]} 39. Rc6+ {[%emt 0:04:28]} Kg5 {[%emt 0:02:33]} 40. a6 {[%emt 0:00:25]} Kh4 {[%emt 0:01:09]} 41. Kg2 {[%emt 0:03:06]} Ra2+ {[%emt 0:00:44]} 42. Kf3 {[%emt 0:00:04]} Kxh3 {[%emt 0:00:18]} 43. Rg6 {[%emt 0:00:07]} Kh4 {[%emt 0:00:21]} 44. Rxg7 {[%emt 0:03:29]} Rxa6 {[%emt 0:00:12]} 1/2-1/2

[Event "Slovakia Chess Open 2024"]
[Site "Modra"]
[Date "2024.03.04"]
[Round "7.2"]
[White "Krivoborodov, Egor"]
[Black "Hasala, Richard"]
[Result "1-0"]
[ECO "D02"]
[WhiteElo "2555"]
[BlackElo "1935"]
[Annotator "RC"]
[PlyCount "75"]
[EventDate "2024.02.29"]
[EventType "swiss"]
[EventCountry "SVK"]
[SourceTitle "playchess.com"]
[Source "ChessBase"]
[SourceQuality "1"]
[TimeControl "5400+30"]

1. d4 {[%emt 0:02:05]} Nf6 {[%emt 0:01:03]} 2. Bf4 {[%emt 0:00:07]} e6 {[%emt 0:00:25]} 3. e3 {[%emt 0:00:21]} d5 {[%emt 0:00:18]} 4. Nf3 {[%emt 0:00:11]} Be7 {[%emt 0:01:24]} 5. Bd3 {[%emt 0:00:22]} O-O {[%emt 0:00:35]} 6. Nbd2 {[%emt 0:00:40]} b6 {[%emt 0:01:28]} 7. Ne5 {[%emt 0:04:22]} Bb7 {[%emt 0:00:49]} 8. Qf3 {[%emt 0:00:23]} c5 {[%emt 0:11:00]} 9. c3 {[%emt 0:00:14]} Nbd7 {[%emt 0:01:18]} 10. Qh3 {[%emt 0:03:50]} g6 {[%emt 0:01:52]} 11. Ndf3 {[%emt 0:01:51]} Ne4 {[%emt 0:05:28]} 12. Bh6 {[%emt 0:06:02]} Re8 {[%emt 0:00:48]} 13. Bb5 {[%emt 0:00:14]} Bc8 {[%emt 0:04:21]} 14. Bf4 {[%emt 0:12:07]} Rf8 {[%emt 0:08:35]} 15. Bh6 {[%emt 0:34:03]} Re8 {[%emt 0:00:59]} 16. Bc6 {[%emt 0:03:30]} Nxe5 {[%emt 0:06:06]} 17. Nxe5 {[%emt 0:00:56]} f6 {[%emt 0:00:44]} 18. Bxa8 {[%emt 0:00:50]} fxe5 {[%emt 0:00:06]} 19. Bc6 {[%emt 0:00:07]} Bd7 {[%emt 0:00:09]} 20. Bxd7 {[%emt 0:03:27]} Qxd7 {[%emt 0:00:01]} 21. dxe5 {[%emt 0:00:17]} d4 {[%emt 0:01:30]} 22. exd4 {[%emt 0:00:22]} cxd4 {[%emt 0:00:21]} 23. Rd1 {[%emt 0:02:51]} Qc6 {[%emt 0:02:07]} 24. O-O {[%emt 0:01:25]} dxc3 {[%emt 0:00:13]} 25. Rc1 {[%emt 0:03:45]} Bc5 {[%emt 0:02:40]} 26. bxc3 {[%emt 0:00:24]} Rd8 {[%emt 0:02:56]} 27. Be3 {[%emt 0:02:23]} Rd3 {[%emt 0:02:03]} 28. Qh6 {[%emt 0:00:37]} Qd5 {[%emt 0:02:34]} 29. Bxc5 {[%emt 0:00:16]} Qxc5 {[%emt 0:00:19]} 30. c4 {[%emt 0:03:52]} Qxe5 {[%emt 0:04:54]} 31. Rcd1 {[%emt 0:00:29]} Nc5 {[%emt 0:01:46]} 32. Rxd3 {[%emt 0:00:23]} Nxd3 {[%emt 0:00:02]} 33. Rd1 {[%emt 0:00:53]} Qe2 {[%emt 0:00:29]} 34. Qd2 {[%emt 0:00:20]} Qxd2 {[%emt 0:00:23]} 35. Rxd2 {[%emt 0:00:01]} Ne5 {[%emt 0:00:59]} 36. Rd8+ {[%emt 0:00:37]} Kg7 {[%emt 0:00:14]} 37. Rc8 {[%emt 0:00:19]} Kf6 {[%emt 0:00:57]} 38. c5 {[%emt 0:00:14]} 1-0

[Event "Slovakia Chess Open 2024"]
[Site "Modra"]
[Date "2024.03.04"]
[Round "7.3"]
[White "Shirinyan, Daniel"]
[Black "Banas, Kamil"]
[Result "1/2-1/2"]
[ECO "D45"]
[WhiteElo "2177"]
[BlackElo "2162"]
[Annotator "RC"]
[PlyCount "90"]
[EventDate "2024.02.29"]
[EventType "swiss"]
[EventCountry "SVK"]
[SourceTitle "playchess.com"]
[Source "ChessBase"]
[SourceQuality "1"]
[TimeControl "5400+30"]

1. d4 {[%emt 0:02:04]} d5 {[%emt 0:00:11]} 2. c4 {[%emt 0:00:04]} e6 {[%emt 0:00:14]} 3. Nc3 {[%emt 0:00:05]} c6 {[%emt 0:01:02]} 4. e3 {[%emt 0:12:37]} Nf6 {[%emt 0:00:13]} 5. Nf3 {[%emt 0:00:05]} Nbd7 {[%emt 0:00:33]} 6. b3 {[%emt 0:00:31]} Bb4 {[%emt 0:01:06]} 7. Bd2 {[%emt 0:00:48]} O-O {[%emt 0:01:31]} 8. Bd3 {[%emt 0:00:36]} dxc4 {[%emt 0:02:59]} 9. Bxc4 {[%emt 0:03:19]} Qe7 {[%emt 0:03:59]} 10. O-O {[%emt 0:02:56]} e5 {[%emt 0:01:49]} 11. dxe5 {[%emt 0:00:26]} Nxe5 {[%emt 0:00:05]} 12. Nxe5 {[%emt 0:01:31]} Qxe5 {[%emt 0:00:02]} 13. Rc1 {[%emt 0:03:45]} Ng4 {[%emt 0:04:03]} 14. f4 {[%emt 0:00:12]} Qe7 {[%emt 0:01:06]} 15. Qf3 {[%emt 0:09:39]} Nf6 {[%emt 0:04:56]} 16. h3 {[%emt 0:04:07]} Bf5 {[%emt 0:02:29]} 17. e4 {[%emt 0:04:16]} Bc5+ {[%emt 0:06:44]} 18. Be3 {[%emt 0:04:19]} Nxe4 {[%emt 0:02:02]} 19. Nxe4 {[%emt 0:00:53]} Bxe3+ {[%emt 0:00:26]} 20. Qxe3 {[%emt 0:00:03]} Qxe4 {[%emt 0:00:04]} 21. Qxe4 {[%emt 0:00:28]} Bxe4 {[%emt 0:00:01]} 22. Rfe1 {[%emt 0:00:56]} Rfe8 {[%emt 0:04:05]} 23. Rcd1 {[%emt 0:00:24]} Re7 {[%emt 0:02:04]} 24. Bd3 {[%emt 0:02:05]} f5 {[%emt 0:00:22]} 25. Bxe4 {[%emt 0:00:10]} fxe4 {[%emt 0:00:08]} 26. Kf2 {[%emt 0:00:09]} Kf7 {[%emt 0:01:29]} 27. Rd4 {[%emt 0:00:56]} Rae8 {[%emt 0:00:17]} 28. Ke3 {[%emt 0:00:05]} h5 {[%emt 0:00:47]} 29. g3 {[%emt 0:04:31]} Kf6 {[%emt 0:01:16]} 30. Rc1 {[%emt 0:00:52]} g5 {[%emt 0:04:56]} 31. fxg5+ {[%emt 0:01:21]} Kxg5 {[%emt 0:00:04]} 32. Rf1 {[%emt 0:00:04]} Re5 {[%emt 0:03:09]} 33. Rf4 {[%emt 0:02:22]} Rc5 {[%emt 0:01:59]} 34. Rfxe4 {[%emt 0:01:25]} Rc3+ {[%emt 0:01:30]} 35. Rd3 {[%emt 0:00:08]} Rxe4+ {[%emt 0:00:30]} 36. Kxe4 {[%emt 0:00:09]} Rc2 {[%emt 0:00:26]} 37. Rd7 {[%emt 0:02:41]} Rxa2 {[%emt 0:02:10]} 38. Rg7+ {[%emt 0:00:55]} Kf6 {[%emt 0:00:54]} 39. Rxb7 {[%emt 0:00:03]} a5 {[%emt 0:02:23]} 40. Rb6 {[%emt 0:00:22]} Rc2 {[%emt 0:00:17]} 41. Ra6 {[%emt 0:02:19]} Rc3 {[%emt 0:00:47]} 42. Rxa5 {[%emt 0:00:05]} Rxb3 {[%emt 0:00:44]} 43. Rxh5 {[%emt 0:00:07]} Rxg3 {[%emt 0:00:05]} 44. Rh6+ {[%emt 0:00:11]} Kg5 {[%emt 0:00:09]} 45. Rxc6 {[%emt 0:00:09]} Rxh3 {[%emt 0:00:03]} 1/2-1/2

[Event "Slovakia Chess Open 2024"]
[Site "Modra"]
[Date "2024.03.04"]
[Round "7.4"]
[White "Melih, Mario"]
[Black "Galla, Richard"]
[Result "1/2-1/2"]
[ECO "A15"]
[WhiteElo "1930"]
[BlackElo "1975"]
[Annotator "NA RC"]
[PlyCount "53"]
[EventDate "2024.02.29"]
[EventType "swiss"]
[EventCountry "SVK"]
[SourceTitle "playchess.com"]
[Source "ChessBase"]
[SourceQuality "1"]
[TimeControl "5400+30"]

1. Nf3 {[%emt 0:00:05]} Nf6 {[%emt 0:00:24]} 2. g3 {[%emt 0:00:16]} b6 {[%emt 0:01:32]} 3. Bg2 {[%emt 0:00:13]} Bb7 {[%emt 0:00:05]} 4. O-O {[%emt 0:00:36]} e6 {[%emt 0:01:18]} 5. c4 {[%emt 0:00:24]} Be7 {[%emt 0:00:20]} 6. a3 {[%emt 0:01:27]} O-O {[%emt 0:00:47]} 7. Qc2 $11 {[%emt 0:03:51]} (7. d4 {might be stronger.}) 7... d5 {[%emt 0:02:45]} 8. d4 {[%emt 0:10:06]} dxc4 {[%emt 0:05:16]} 9. Qxc4 {[%emt 0:03:00]} Nbd7 {[%emt 0:00:19]} 10. Rd1 {[%emt 0:02:06]} Rc8 {[%emt 0:01:34]} 11. Nc3 {[%emt 0:06:30]} c5 {[%emt 0:02:59]} 12. dxc5 {[%emt 0:06:49]} Bxc5 {[%emt 0:02:25]} 13. Qd3 {[%emt 0:01:40]} Re8 {[%emt 0:14:19]} 14. b4 {[%emt 0:04:25]} Bf8 {[%emt 0:01:48]} 15. Bb2 {[%emt 0:00:54]} Qe7 {[%emt 0:03:31]} 16. e4 {[%emt 0:15:53]} Red8 {[%emt 0:02:51]} 17. Qe3 {[%emt 0:03:25]} e5 {[%emt 0:04:33]} 18. Bh3 {[%emt 0:03:43]} Rc4 {[%emt 0:01:34]} 19. Nd2 {[%emt 0:03:02]} Rc6 {[%emt 0:01:52]} 20. Nb3 {[%emt 0:02:15]} a6 {[%emt 0:10:18]} 21. Rd3 {[%emt 0:02:28]} Nb8 {[%emt 0:01:34]} 22. Rad1 {[%emt 0:00:37]} Rcd6 {[%emt 0:00:54]} 23. f3 {[%emt 0:10:28]} Qc7 {[%emt 0:04:03]} 24. Bf1 {[%emt 0:03:10]} Bc8 {[%emt 0:04:15]} 25. Rxd6 {[%emt 0:05:41]} Rxd6 {[%emt 0:00:24]} 26. Rxd6 {[%emt 0:00:09]} Bxd6 {[%emt 0:01:50]} 27. Na4 {[%emt 0:03:11]} 1/2-1/2

[Event "Slovakia Chess Open 2024"]
[Site "Modra"]
[Date "2024.03.04"]
[Round "7.5"]
[White "Kukla, Tomas"]
[Black "Oruzinsky, Juraj"]
[Result "0-1"]
[ECO "D15"]
[WhiteElo "1864"]
[BlackElo "2160"]
[Annotator "RC"]
[PlyCount "118"]
[EventDate "2024.02.29"]
[EventType "swiss"]
[EventCountry "SVK"]
[SourceTitle "playchess.com"]
[Source "ChessBase"]
[SourceQuality "1"]
[TimeControl "5400+30"]

1. d4 {[%emt 0:00:03]} d5 {[%emt 0:00:05]} 2. c4 {[%emt 0:00:09]} c6 {[%emt 0:00:03]} 3. Nf3 {[%emt 0:00:06]} Nf6 {[%emt 0:00:03]} 4. Nc3 {[%emt 0:00:05]} a6 {[%emt 0:00:02]} 5. Qc2 {[%emt 0:02:18]} Bg4 {[%emt 0:05:02]} 6. Ne5 {[%emt 0:01:47]} Bh5 {[%emt 0:01:16]} 7. Bg5 {[%emt 0:02:10]} e6 {[%emt 0:04:57]} 8. e3 {[%emt 0:02:50]} Be7 {[%emt 0:00:58]} 9. Bd3 {[%emt 0:06:17]} Nbd7 {[%emt 0:01:15]} 10. Bxf6 {[%emt 0:03:40]} Nxf6 {[%emt 0:03:01]} 11. c5 {[%emt 0:02:58]} Nd7 {[%emt 0:03:21]} 12. Nxd7 {[%emt 0:02:44]} Qxd7 {[%emt 0:00:04]} 13. Ne2 {[%emt 0:03:56]} Qc7 {[%emt 0:03:36]} 14. O-O {[%emt 0:01:44]} e5 {[%emt 0:01:09]} 15. Bf5 {[%emt 0:08:44]} e4 {[%emt 0:07:27]} 16. Ng3 {[%emt 0:03:46]} Bg6 {[%emt 0:01:28]} 17. f4 {[%emt 0:00:59]} Bh4 {[%emt 0:14:00]} 18. Bh3 {[%emt 0:02:10]} Bxg3 {[%emt 0:02:06]} 19. hxg3 {[%emt 0:00:09]} f5 {[%emt 0:00:04]} 20. Qe2 {[%emt 0:01:50]} h5 {[%emt 0:00:56]} 21. b4 {[%emt 0:00:34]} O-O {[%emt 0:05:04]} 22. a4 {[%emt 0:01:07]} a5 {[%emt 0:00:15]} 23. b5 {[%emt 0:00:33]} cxb5 {[%emt 0:00:07]} 24. axb5 {[%emt 0:00:37]} Be8 {[%emt 0:06:40]} 25. Rfb1 {[%emt 0:01:07]} g6 {[%emt 0:01:39]} 26. Ra3 {[%emt 0:03:01]} Qd8 {[%emt 0:05:32]} 27. Qa2 {[%emt 0:02:32]} Rf7 {[%emt 0:01:18]} 28. Qb3 {[%emt 0:02:13]} Kg7 {[%emt 0:00:49]} 29. Rba1 {[%emt 0:01:50]} Kh6 {[%emt 0:01:26]} 30. Rb1 {[%emt 0:01:27]} Rc7 {[%emt 0:01:18]} 31. Qd1 {[%emt 0:00:55]} b6 {[%emt 0:06:18]} 32. c6 {[%emt 0:09:27]} Bxc6 {[%emt 0:10:52]} 33. bxc6 {[%emt 0:00:10]} Rxc6 {[%emt 0:00:20]} 34. g4 {[%emt 0:00:59]} hxg4 {[%emt 0:00:05]} 35. Bxg4 {[%emt 0:00:05]} fxg4 {[%emt 0:00:04]} 36. Qxg4 {[%emt 0:00:07]} Rac8 {[%emt 0:00:41]} 37. Kf2 {[%emt 0:02:32]} Rc1 {[%emt 0:02:08]} 38. Raa1 {[%emt 0:00:50]} Rxb1 {[%emt 0:00:47]} 39. Rxb1 {[%emt 0:00:05]} Rc2+ {[%emt 0:02:15]} 40. Kg3 {[%emt 0:00:52]} Kg7 {[%emt 0:00:29]} 41. Qe6 {[%emt 0:02:51]} Rc3 {[%emt 0:04:11]} 42. Rh1 {[%emt 0:02:24]} Qc7 {[%emt 0:02:37]} 43. Re1 {[%emt 0:10:55]} g5 {[%emt 0:01:34]} 44. Qg4 {[%emt 0:05:17]} Qxf4+ {[%emt 0:00:17]} 45. Qxf4 {[%emt 0:00:07]} gxf4+ {[%emt 0:00:02]} 46. Kxf4 {[%emt 0:00:09]} b5 {[%emt 0:00:29]} 47. Ke5 {[%emt 0:00:14]} a4 {[%emt 0:00:45]} 48. Kxd5 {[%emt 0:00:23]} a3 {[%emt 0:00:42]} 49. Kxe4 {[%emt 0:00:32]} b4 {[%emt 0:00:25]} 50. Ra1 {[%emt 0:00:28]} Rc2 {[%emt 0:01:50]} 51. Kd3 {[%emt 0:01:48]} Rxg2 {[%emt 0:00:07]} 52. Kc4 {[%emt 0:00:51]} Rb2 {[%emt 0:00:06]} 53. e4 {[%emt 0:00:20]} a2 {[%emt 0:00:39]} 54. Rxa2 {[%emt 0:00:45]} Rxa2 {[%emt 0:00:04]} 55. Kxb4 {[%emt 0:00:06]} Rc2 {[%emt 0:00:24]} 56. e5 {[%emt 0:00:24]} Kf7 {[%emt 0:00:21]} 57. d5 {[%emt 0:00:07]} Ke7 {[%emt 0:00:09]} 58. Kb5 {[%emt 0:00:06]} Re2 {[%emt 0:00:21]} 59. e6 {[%emt 0:00:28]} Kd6 {[%emt 0:00:07]} 0-1